[Event "Titled Tuesday Blitz June 6 Early 2023"]
[White "Kramnik, Vladimir"]
[Black "Wadsworth, Matthew J"]
[WhiteFideId "4101588"]
[BlackFideId "415804"]
[WhiteElo "2703"]
[BlackElo "2347"]
[Result "1-0"]
[Round "4"]
[TimeControl "180+2"]
[Date "2023.06.06"]
[WhiteClock "0:00:58"]
[BlackClock "0:00:05"]
[Board "33"]

1. c4 {[%clk 0:03:00]}  e5 {[%clk 0:02:57]} 2. d3 {[%clk 0:02:59]}  Nf6 {[%clk 0:02:55]} 3. Nf3 {[%clk 0:02:59]}  Nc6 {[%clk 0:02:51]} 4. a3 {[%clk 0:03:00]}  a5 {[%clk 0:02:49]} 5. e3 {[%clk 0:02:52]}  d6 {[%clk 0:02:27]} 6. Nc3 {[%clk 0:02:50]}  g6 {[%clk 0:02:26]} 7. Be2 {[%clk 0:02:48]}  Bg7 {[%clk 0:02:27]} 8. O-O {[%clk 0:02:48]}  O-O {[%clk 0:02:26]} 9. Rb1 {[%clk 0:02:49]}  Re8 {[%clk 0:02:24]} 10. b4 {[%clk 0:02:47]}  axb4 {[%clk 0:02:24]} 11. axb4 {[%clk 0:02:47]}  e4 {[%clk 0:02:23]} 12. dxe4 {[%clk 0:02:46]}  Nxe4 {[%clk 0:02:23]} 13. Nxe4 {[%clk 0:02:41]}  Rxe4 {[%clk 0:02:24]} 14. Bb2 {[%clk 0:02:35]}  Bxb2 {[%clk 0:02:16]} 15. Rxb2 {[%clk 0:02:35]}  Qf6 {[%clk 0:02:16]} 16. Qd2 {[%clk 0:02:33]}  Be6 {[%clk 0:02:08]} 17. Rc1 {[%clk 0:02:28]}  Ne5 {[%clk 0:01:44]} 18. Nd4 {[%clk 0:02:17]}  c5 {[%clk 0:00:55]} 19. bxc5 {[%clk 0:02:15]}  dxc5 {[%clk 0:00:55]} 20. Nxe6 {[%clk 0:02:15]}  Qxe6 {[%clk 0:00:55]} 21. Qd5 {[%clk 0:01:49]}  Nxc4 {[%clk 0:00:49]} 22. Qxe6 {[%clk 0:01:46]}  fxe6 {[%clk 0:00:49]} 23. Rxb7 {[%clk 0:01:44]}  Ra2 {[%clk 0:00:37]} 24. Bd3 {[%clk 0:01:39]}  Nd6 {[%clk 0:00:21]} 25. Bxe4 {[%clk 0:01:35]}  Nxe4 {[%clk 0:00:20]} 26. f3 {[%clk 0:01:29]}  Nd6 {[%clk 0:00:20]} 27. Rb6 {[%clk 0:01:24]}  Nf5 {[%clk 0:00:16]} 28. Rxe6 {[%clk 0:01:14]}  Nh4 {[%clk 0:00:14]} 29. Re4 {[%clk 0:01:10]}  Nxg2 {[%clk 0:00:08]} 30. Rf1 {[%clk 0:01:02]}  g5 {[%clk 0:00:05]} 31. Rf2 {[%clk 0:01:00]}  Rxf2 {[%clk 0:00:04]} 32. Kxf2 {[%clk 0:01:00]}  Nh4 {[%clk 0:00:04]} 33. Re5 {[%clk 0:01:00]}  h6 {[%clk 0:00:05]} 34. Rxc5 {[%clk 0:01:00]}  Kf7 {[%clk 0:00:05]} 35. Kg3 {[%clk 0:00:58]}  Nf5+ {[%clk 0:00:05]} 1-0


[Site "https://www.chess.com"]

[Event "Titled Tuesday Blitz June 6 Early 2023"]
[White "Shevchenko, Kirill"]
[Black "Guz, Ari"]
[WhiteFideId "14129574"]
[BlackFideId "2825759"]
[WhiteElo "2603"]
[BlackElo "2205"]
[Result "1-0"]
[Round "4"]
[TimeControl "180+2"]
[Date "2023.06.06"]
[WhiteClock "0:00:03"]
[BlackClock "0:00:15"]
[Board "34"]

1. e4 {[%clk 0:02:59]}  c6 {[%clk 0:02:49]} 2. d4 {[%clk 0:02:53]}  d5 {[%clk 0:02:49]} 3. e5 {[%clk 0:02:54]}  g6 {[%clk 0:02:50]} 4. h3 {[%clk 0:02:51]}  h5 {[%clk 0:02:38]} 5. Nf3 {[%clk 0:02:52]}  Bh6 {[%clk 0:02:38]} 6. Nbd2 {[%clk 0:02:48]}  Bf5 {[%clk 0:02:31]} 7. Be2 {[%clk 0:02:43]}  e6 {[%clk 0:02:20]} 8. O-O {[%clk 0:02:40]}  g5 {[%clk 0:02:13]} 9. Nh2 {[%clk 0:02:37]}  g4 {[%clk 0:02:13]} 10. hxg4 {[%clk 0:02:13]}  hxg4 {[%clk 0:02:13]} 11. Bxg4 {[%clk 0:02:14]}  Bxd2 {[%clk 0:02:08]} 12. Bxd2 {[%clk 0:02:14]}  Qh4 {[%clk 0:02:08]} 13. Bf4 {[%clk 0:02:14]}  Nh6 {[%clk 0:02:02]} 14. Bg3 {[%clk 0:02:10]}  Qg5 {[%clk 0:01:59]} 15. Be2 {[%clk 0:02:05]}  Nd7 {[%clk 0:01:57]} 16. Qc1 {[%clk 0:02:05]}  Qg6 {[%clk 0:01:53]} 17. c4 {[%clk 0:01:59]}  dxc4 {[%clk 0:01:45]} 18. Qxc4 {[%clk 0:01:50]}  Nb6 {[%clk 0:01:43]} 19. Qc5 {[%clk 0:01:34]}  O-O-O {[%clk 0:01:42]} 20. a4 {[%clk 0:01:28]}  Bd3 {[%clk 0:01:20]} 21. Bxd3 {[%clk 0:01:23]}  Qxd3 {[%clk 0:01:21]} 22. a5 {[%clk 0:01:24]}  Nd5 {[%clk 0:01:18]} 23. a6 {[%clk 0:01:25]}  bxa6 {[%clk 0:00:59]} 24. Qxc6+ {[%clk 0:01:24]}  Kb8 {[%clk 0:00:59]} 25. Qxa6 {[%clk 0:00:43]}  Qxa6 {[%clk 0:00:56]} 26. Rxa6 {[%clk 0:00:44]}  Nf5 {[%clk 0:00:56]} 27. Rfa1 {[%clk 0:00:41]}  Rd7 {[%clk 0:00:34]} 28. Nf3 {[%clk 0:00:39]}  Nb4 {[%clk 0:00:30]} 29. R6a4 {[%clk 0:00:33]}  Nc2 {[%clk 0:00:28]} 30. Rd1 {[%clk 0:00:33]}  Rhd8 {[%clk 0:00:28]} 31. Bh4 {[%clk 0:00:30]}  Nxh4 {[%clk 0:00:27]} 32. Nxh4 {[%clk 0:00:30]}  Nxd4 {[%clk 0:00:27]} 33. Kf1 {[%clk 0:00:25]}  Nc6 {[%clk 0:00:26]} 34. Rxd7 {[%clk 0:00:25]}  Rxd7 {[%clk 0:00:27]} 35. Nf3 {[%clk 0:00:24]}  Rd1+ {[%clk 0:00:26]} 36. Ke2 {[%clk 0:00:23]}  Rb1 {[%clk 0:00:27]} 37. Ra2 {[%clk 0:00:14]}  Nb4 {[%clk 0:00:27]} 38. Nd2 {[%clk 0:00:13]}  Rg1 {[%clk 0:00:20]} 39. Ra4 {[%clk 0:00:13]}  Nc6 {[%clk 0:00:21]} 40. Nf3 {[%clk 0:00:11]}  Rxg2 {[%clk 0:00:21]} 41. Rf4 {[%clk 0:00:12]}  Rg7 {[%clk 0:00:19]} 42. Ke3 {[%clk 0:00:13]}  Kc7 {[%clk 0:00:19]} 43. Ke4 {[%clk 0:00:13]}  Kd7 {[%clk 0:00:19]} 44. Rh4 {[%clk 0:00:09]}  Ne7 {[%clk 0:00:19]} 45. Nd4 {[%clk 0:00:05]}  Rg2 {[%clk 0:00:17]} 46. Kf3 {[%clk 0:00:05]}  Rg5 {[%clk 0:00:17]} 47. Rh7 {[%clk 0:00:05]}  Rxe5 {[%clk 0:00:16]} 48. Rxf7 {[%clk 0:00:06]}  Ke8 {[%clk 0:00:17]} 49. Rh7 {[%clk 0:00:05]}  Nf5 {[%clk 0:00:17]} 50. Nc6 {[%clk 0:00:05]}  Rb5 {[%clk 0:00:16]} 51. Rxa7 {[%clk 0:00:03]}  Rxb2 {[%clk 0:00:17]} 52. Ne5 {[%clk 0:00:02]}  Rb5 {[%clk 0:00:17]} 53. Nc4 {[%clk 0:00:02]}  Rb4 {[%clk 0:00:17]} 54. Ne5 {[%clk 0:00:02]}  Rb5 {[%clk 0:00:17]} 55. Kf4 {[%clk 0:00:03]}  Ne7 {[%clk 0:00:15]} 56. Ra8+ {[%clk 0:00:03]} 1-0


[Site "https://www.chess.com"]

[Event "Titled Tuesday Blitz June 6 Early 2023"]
[White "Gontcharov, Vladislav"]
[Black "Makarian, Rudik"]
[WhiteFideId "4123492"]
[BlackFideId "44105681"]
[WhiteElo "2420"]
[BlackElo "2451"]
[Result "0-1"]
[Round "4"]
[TimeControl "180+2"]
[Date "2023.06.06"]
[WhiteClock "0:00:01"]
[BlackClock "0:00:07"]
[Board "35"]

1. d4 {[%clk 0:03:00]}  Nf6 {[%clk 0:02:59]} 2. c4 {[%clk 0:03:00]}  e6 {[%clk 0:02:59]} 3. Nc3 {[%clk 0:02:59]}  d5 {[%clk 0:03:00]} 4. Bg5 {[%clk 0:02:58]}  Be7 {[%clk 0:02:59]} 5. e3 {[%clk 0:02:58]}  Nbd7 {[%clk 0:02:57]} 6. Rc1 {[%clk 0:02:56]}  h6 {[%clk 0:02:54]} 7. Bh4 {[%clk 0:02:53]}  c6 {[%clk 0:02:52]} 8. Bd3 {[%clk 0:02:51]}  dxc4 {[%clk 0:02:51]} 9. Bxc4 {[%clk 0:02:51]}  b5 {[%clk 0:02:51]} 10. Bb3 {[%clk 0:02:50]}  Bb7 {[%clk 0:02:51]} 11. Nf3 {[%clk 0:02:50]}  O-O {[%clk 0:02:49]} 12. O-O {[%clk 0:02:49]}  a5 {[%clk 0:02:45]} 13. Re1 {[%clk 0:02:32]}  a4 {[%clk 0:02:40]} 14. Bc2 {[%clk 0:02:32]}  a3 {[%clk 0:02:37]} 15. b3 {[%clk 0:02:21]}  b4 {[%clk 0:02:27]} 16. Ne4 {[%clk 0:02:11]}  c5 {[%clk 0:02:09]} 17. Bxf6 {[%clk 0:02:05]}  Nxf6 {[%clk 0:01:59]} 18. Nxc5 {[%clk 0:01:52]}  Bxc5 {[%clk 0:01:57]} 19. dxc5 {[%clk 0:01:52]}  Rc8 {[%clk 0:01:49]} 20. Nd4 {[%clk 0:01:04]}  Qd5 {[%clk 0:01:16]} 21. c6 {[%clk 0:01:04]}  Ba8 {[%clk 0:00:51]} 22. Bd3 {[%clk 0:00:53]}  g6 {[%clk 0:00:38]} 23. Qf3 {[%clk 0:00:37]}  Qxf3 {[%clk 0:00:34]} 24. gxf3 {[%clk 0:00:36]}  e5 {[%clk 0:00:34]} 25. Nc2 {[%clk 0:00:36]}  Bxc6 {[%clk 0:00:22]} 26. e4 {[%clk 0:00:29]}  Rb8 {[%clk 0:00:19]} 27. Nxb4 {[%clk 0:00:24]}  Bxe4 {[%clk 0:00:14]} 28. Na6 {[%clk 0:00:22]}  Bxd3 {[%clk 0:00:13]} 29. Nxb8 {[%clk 0:00:21]}  Rxb8 {[%clk 0:00:14]} 30. Rxe5 {[%clk 0:00:21]}  Kg7 {[%clk 0:00:14]} 31. Rc7 {[%clk 0:00:19]}  Nh5 {[%clk 0:00:10]} 32. Ree7 {[%clk 0:00:13]}  Rf8 {[%clk 0:00:10]} 33. f4 {[%clk 0:00:08]}  Nxf4 {[%clk 0:00:10]} 34. Ra7 {[%clk 0:00:08]}  g5 {[%clk 0:00:10]} 35. f3 {[%clk 0:00:08]}  Kg6 {[%clk 0:00:08]} 36. Kf2 {[%clk 0:00:05]}  Rc8 {[%clk 0:00:07]} 37. Ra6+ {[%clk 0:00:03]}  f6 {[%clk 0:00:07]} 38. Rxa3 {[%clk 0:00:03]}  Rc2+ {[%clk 0:00:07]} 39. Ke1 {[%clk 0:00:03]}  Rxh2 {[%clk 0:00:06]} 40. Raa7 {[%clk 0:00:01]}  h5 {[%clk 0:00:06]} 41. Rg7+ {[%clk 0:00:01]}  Kh6 {[%clk 0:00:07]} 42. Rg8 {[%clk 0:00:01]}  h4 {[%clk 0:00:06]} 43. Rh8+ {[%clk 0:00:01]}  Kg6 {[%clk 0:00:07]} 44. Rg8+ {[%clk 0:00:01]}  Kf5 {[%clk 0:00:07]} 45. Ra5+ {[%clk 0:00:02]}  Ke6 {[%clk 0:00:08]} 46. Re8+ {[%clk 0:00:01]}  Kf7 {[%clk 0:00:08]} 47. Re3 {[%clk 0:00:02]}  Ng2+ {[%clk 0:00:08]} 48. Kd2 {[%clk 0:00:01]}  Nxe3+ {[%clk 0:00:09]} 49. Kxd3 {[%clk 0:00:01]}  Ng2 {[%clk 0:00:08]} 50. Ra7+ {[%clk 0:00:02]}  Kg6 {[%clk 0:00:09]} 51. b4 {[%clk 0:00:02]}  Nf4+ {[%clk 0:00:10]} 52. Kc3 {[%clk 0:00:02]}  h3 {[%clk 0:00:10]} 53. b5 {[%clk 0:00:02]}  Rh1 {[%clk 0:00:08]} 54. Ra8 {[%clk 0:00:02]}  Rb1 {[%clk 0:00:08]} 55. Rg8+ {[%clk 0:00:02]}  Kf7 {[%clk 0:00:08]} 56. Rh8 {[%clk 0:00:02]}  Rxb5 {[%clk 0:00:08]} 57. a4 {[%clk 0:00:02]}  Re5 {[%clk 0:00:07]} 58. Kb4 {[%clk 0:00:02]}  Re3 {[%clk 0:00:06]} 59. a5 {[%clk 0:00:02]}  Rxf3 {[%clk 0:00:05]} 60. a6 {[%clk 0:00:03]}  Rf1 {[%clk 0:00:06]} 61. a7 {[%clk 0:00:02]}  Ra1 {[%clk 0:00:07]} 62. a8=Q {[%clk 0:00:02]}  Rxa8 {[%clk 0:00:07]} 63. Rxa8 {[%clk 0:00:03]}  g4 {[%clk 0:00:07]} 64. Ra7+ {[%clk 0:00:02]}  Kg6 {[%clk 0:00:07]} 65. Kc3 {[%clk 0:00:02]}  h2 {[%clk 0:00:06]} 66. Ra1 {[%clk 0:00:01]}  Ne2+ {[%clk 0:00:06]} 67. Kd3 {[%clk 0:00:01]}  Ng1 {[%clk 0:00:07]} 68. Ke3 {[%clk 0:00:01]}  h1=Q {[%clk 0:00:07]} 0-1


[Site "https://www.chess.com"]

[Event "Titled Tuesday Blitz June 6 Early 2023"]
[White "Kevlishvili, Robby"]
[Black "Krutko, Anatoly"]
[WhiteFideId "1040634"]
[BlackFideId "4185862"]
[WhiteElo "2572"]
[BlackElo "2378"]
[Result "1-0"]
[Round "4"]
[TimeControl "180+2"]
[Date "2023.06.06"]
[WhiteClock "0:02:01"]
[BlackClock "0:00:05"]
[Board "37"]

1. e4 {[%clk 0:03:00]}  e5 {[%clk 0:02:58]} 2. Nf3 {[%clk 0:02:59]}  Nc6 {[%clk 0:02:58]} 3. Nc3 {[%clk 0:02:59]}  Nf6 {[%clk 0:02:58]} 4. a3 {[%clk 0:02:58]}  g6 {[%clk 0:02:48]} 5. Bc4 {[%clk 0:02:57]}  Bg7 {[%clk 0:02:48]} 6. d3 {[%clk 0:02:57]}  h6 {[%clk 0:02:47]} 7. h3 {[%clk 0:02:57]}  O-O {[%clk 0:02:46]} 8. Be3 {[%clk 0:02:57]}  d6 {[%clk 0:02:46]} 9. Qd2 {[%clk 0:02:58]}  Kh7 {[%clk 0:02:46]} 10. O-O-O {[%clk 0:02:57]}  a6 {[%clk 0:02:46]} 11. g4 {[%clk 0:02:57]}  b5 {[%clk 0:02:42]} 12. Bb3 {[%clk 0:02:54]}  Ng8 {[%clk 0:02:33]} 13. Rdg1 {[%clk 0:02:50]}  Be6 {[%clk 0:02:25]} 14. Bd5 {[%clk 0:02:50]}  Bxd5 {[%clk 0:02:21]} 15. Nxd5 {[%clk 0:02:46]}  Nce7 {[%clk 0:02:09]} 16. Nc3 {[%clk 0:02:31]}  c5 {[%clk 0:02:06]} 17. h4 {[%clk 0:02:30]}  b4 {[%clk 0:02:00]} 18. axb4 {[%clk 0:02:28]}  cxb4 {[%clk 0:02:01]} 19. Ne2 {[%clk 0:02:28]}  b3 {[%clk 0:01:57]} 20. c4 {[%clk 0:02:25]}  a5 {[%clk 0:01:31]} 21. Nc3 {[%clk 0:02:20]}  a4 {[%clk 0:01:30]} 22. Nb5 {[%clk 0:02:20]}  Qd7 {[%clk 0:01:08]} 23. Na3 {[%clk 0:02:19]}  Rfc8 {[%clk 0:01:03]} 24. Ng5+ {[%clk 0:02:16]}  Kh8 {[%clk 0:00:57]} 25. Nxf7+ {[%clk 0:02:16]}  Kh7 {[%clk 0:00:57]} 26. Ng5+ {[%clk 0:02:16]}  Kh8 {[%clk 0:00:58]} 27. Kb1 {[%clk 0:02:17]}  Bf6 {[%clk 0:00:44]} 28. Nf7+ {[%clk 0:02:12]}  Kg7 {[%clk 0:00:44]} 29. Nxh6 {[%clk 0:02:12]}  Nc6 {[%clk 0:00:41]} 30. Nxg8 {[%clk 0:02:09]}  Rxg8 {[%clk 0:00:41]} 31. g5 {[%clk 0:02:06]}  Be7 {[%clk 0:00:40]} 32. h5 {[%clk 0:02:07]}  Rab8 {[%clk 0:00:32]} 33. hxg6 {[%clk 0:02:06]}  Rh8 {[%clk 0:00:32]} 34. Rh6 {[%clk 0:02:06]}  Nb4 {[%clk 0:00:15]} 35. Qe2 {[%clk 0:02:05]}  Nc2 {[%clk 0:00:14]} 36. Qh5 {[%clk 0:02:02]}  Nxa3+ {[%clk 0:00:13]} 37. bxa3 {[%clk 0:02:01]}  Rbf8 {[%clk 0:00:05]} 38. Rh7+ {[%clk 0:02:01]} 1-0


[Site "https://www.chess.com"]

[Event "Titled Tuesday Blitz June 6 Early 2023"]
[White "Pranav Anand"]
[Black "Iskusnyh, Sergei"]
[WhiteFideId "46626786"]
[BlackFideId "4120027"]
[WhiteElo "2389"]
[BlackElo "2492"]
[Result "1-0"]
[Round "4"]
[TimeControl "180+2"]
[Date "2023.06.06"]
[WhiteClock "0:00:36"]
[BlackClock "0:00:16"]
[Board "40"]

1. Nf3 {[%clk 0:02:56]}  d5 {[%clk 0:02:58]} 2. c4 {[%clk 0:02:56]}  c6 {[%clk 0:02:57]} 3. e3 {[%clk 0:02:56]}  Nf6 {[%clk 0:02:56]} 4. b3 {[%clk 0:02:57]}  Bg4 {[%clk 0:02:50]} 5. Bb2 {[%clk 0:02:56]}  e6 {[%clk 0:02:49]} 6. Be2 {[%clk 0:02:56]}  Nbd7 {[%clk 0:02:48]} 7. O-O {[%clk 0:02:55]}  Bd6 {[%clk 0:02:47]} 8. d4 {[%clk 0:02:55]}  O-O {[%clk 0:02:45]} 9. Nc3 {[%clk 0:02:54]}  Qe7 {[%clk 0:02:41]} 10. Rc1 {[%clk 0:02:48]}  h6 {[%clk 0:02:36]} 11. h3 {[%clk 0:02:38]}  Bh5 {[%clk 0:02:30]} 12. Nh4 {[%clk 0:02:38]}  Bxe2 {[%clk 0:02:25]} 13. Qxe2 {[%clk 0:02:39]}  Rad8 {[%clk 0:01:51]} 14. Rfd1 {[%clk 0:02:05]}  Rfe8 {[%clk 0:01:50]} 15. cxd5 {[%clk 0:02:02]}  exd5 {[%clk 0:01:45]} 16. Nf5 {[%clk 0:02:01]}  Qe6 {[%clk 0:01:45]} 17. Nxd6 {[%clk 0:02:00]}  Qxd6 {[%clk 0:01:45]} 18. Nb1 {[%clk 0:01:57]}  Ne4 {[%clk 0:01:44]} 19. Ba3 {[%clk 0:01:58]}  Qg6 {[%clk 0:01:44]} 20. Nd2 {[%clk 0:01:55]}  Nxd2 {[%clk 0:01:39]} 21. Rxd2 {[%clk 0:01:55]}  Nf6 {[%clk 0:01:39]} 22. Rdc2 {[%clk 0:01:55]}  Ne4 {[%clk 0:01:38]} 23. Bb4 {[%clk 0:01:52]}  Re6 {[%clk 0:01:37]} 24. Be1 {[%clk 0:01:47]}  Rde8 {[%clk 0:01:37]} 25. b4 {[%clk 0:01:47]}  a6 {[%clk 0:01:35]} 26. a4 {[%clk 0:01:47]}  Nd6 {[%clk 0:01:36]} 27. Qd1 {[%clk 0:01:44]}  Nc4 {[%clk 0:01:30]} 28. Rc3 {[%clk 0:01:41]}  b5 {[%clk 0:01:25]} 29. a5 {[%clk 0:01:30]}  f5 {[%clk 0:01:24]} 30. Qf3 {[%clk 0:01:26]}  Re4 {[%clk 0:01:20]} 31. R3c2 {[%clk 0:01:21]}  f4 {[%clk 0:01:18]} 32. Bd2 {[%clk 0:01:20]}  fxe3 {[%clk 0:01:13]} 33. Bxe3 {[%clk 0:01:20]}  Nxe3 {[%clk 0:01:02]} 34. fxe3 {[%clk 0:00:58]}  Rxe3 {[%clk 0:01:02]} 35. Rxc6 {[%clk 0:00:54]}  Qg5 {[%clk 0:00:45]} 36. Qf1 {[%clk 0:00:47]}  Rxh3 {[%clk 0:00:40]} 37. Qf2 {[%clk 0:00:39]}  Rhe3 {[%clk 0:00:19]} 38. Rc8 {[%clk 0:00:39]}  Kh7 {[%clk 0:00:17]} 39. Rxe8 {[%clk 0:00:37]}  Rxe8 {[%clk 0:00:18]} 40. Rc6 {[%clk 0:00:37]}  Qc1+ {[%clk 0:00:16]} 41. Rxc1 {[%clk 0:00:36]} 1-0


[Site "https://www.chess.com"]

[Event "Titled Tuesday Blitz June 6 Early 2023"]
[White "Fridman, Daniel"]
[Black "Diaz Rosas, Julio Cesar"]
[WhiteFideId "11600454"]
[BlackFideId "5105099"]
[WhiteElo "2538"]
[BlackElo "2284"]
[Result "1-0"]
[Round "4"]
[TimeControl "180+2"]
[Date "2023.06.06"]
[WhiteClock "0:01:07"]
[BlackClock "0:00:11"]
[Board "41"]

1. d4 {[%clk 0:03:00]}  d5 {[%clk 0:02:56]} 2. Nf3 {[%clk 0:03:00]}  Nf6 {[%clk 0:02:55]} 3. c4 {[%clk 0:03:00]}  e6 {[%clk 0:02:55]} 4. g3 {[%clk 0:03:00]}  Bb4+ {[%clk 0:02:50]} 5. Nc3 {[%clk 0:02:59]}  O-O {[%clk 0:02:46]} 6. Bg2 {[%clk 0:02:57]}  Ne4 {[%clk 0:02:32]} 7. Qb3 {[%clk 0:02:55]}  c5 {[%clk 0:02:27]} 8. O-O {[%clk 0:02:51]}  Nc6 {[%clk 0:02:20]} 9. cxd5 {[%clk 0:02:51]}  exd5 {[%clk 0:02:20]} 10. dxc5 {[%clk 0:02:50]}  Be6 {[%clk 0:02:06]} 11. Qc2 {[%clk 0:02:38]}  Bf5 {[%clk 0:01:31]} 12. Nh4 {[%clk 0:02:16]}  Nxc3 {[%clk 0:01:28]} 13. Nxf5 {[%clk 0:02:14]}  Ne4 {[%clk 0:01:24]} 14. a3 {[%clk 0:02:11]}  Qf6 {[%clk 0:01:16]} 15. axb4 {[%clk 0:02:00]}  Qxf5 {[%clk 0:01:12]} 16. b5 {[%clk 0:01:43]}  Ne5 {[%clk 0:00:56]} 17. f3 {[%clk 0:01:28]}  Nxg3 {[%clk 0:00:49]} 18. e4 {[%clk 0:01:27]}  Qg6 {[%clk 0:00:21]} 19. hxg3 {[%clk 0:01:26]}  Qxg3 {[%clk 0:00:21]} 20. exd5 {[%clk 0:01:21]}  Rfe8 {[%clk 0:00:20]} 21. Ra4 {[%clk 0:01:17]}  h5 {[%clk 0:00:18]} 22. Bf4 {[%clk 0:01:17]}  Nxf3+ {[%clk 0:00:11]} 23. Rxf3 {[%clk 0:01:14]}  Re1+ {[%clk 0:00:11]} 24. Rf1 {[%clk 0:01:14]}  Qh4 {[%clk 0:00:11]} 25. Qf2 {[%clk 0:01:07]} 1-0


[Site "https://www.chess.com"]

[Event "Titled Tuesday Blitz June 6 Early 2023"]
[White "demon64fields"]
[Black "Gheorghiu, Calin"]
[BlackFideId "1200305"]
[WhiteElo "2843"]
[BlackElo "2204"]
[Result "1-0"]
[Round "4"]
[TimeControl "180+2"]
[Date "2023.06.06"]
[WhiteClock "0:01:48"]
[BlackClock "0:00:01"]
[Board "42"]

1. e4 {[%clk 0:02:49]}  e6 {[%clk 0:02:59]} 2. d3 {[%clk 0:02:48]}  d5 {[%clk 0:02:58]} 3. Nd2 {[%clk 0:02:49]}  c5 {[%clk 0:02:58]} 4. Ngf3 {[%clk 0:02:50]}  Nc6 {[%clk 0:02:55]} 5. g3 {[%clk 0:02:50]}  Bd6 {[%clk 0:02:56]} 6. Bg2 {[%clk 0:02:49]}  Nge7 {[%clk 0:02:55]} 7. O-O {[%clk 0:02:49]}  O-O {[%clk 0:02:56]} 8. Re1 {[%clk 0:02:48]}  Qc7 {[%clk 0:02:56]} 9. b3 {[%clk 0:02:48]}  f6 {[%clk 0:02:40]} 10. Bb2 {[%clk 0:02:48]}  Bd7 {[%clk 0:02:39]} 11. a4 {[%clk 0:02:45]}  a6 {[%clk 0:02:38]} 12. exd5 {[%clk 0:02:39]}  exd5 {[%clk 0:02:37]} 13. d4 {[%clk 0:02:39]}  b6 {[%clk 0:02:22]} 14. c4 {[%clk 0:02:35]}  dxc4 {[%clk 0:01:54]} 15. Nxc4 {[%clk 0:02:36]}  b5 {[%clk 0:01:53]} 16. Nxd6 {[%clk 0:02:28]}  Qxd6 {[%clk 0:01:53]} 17. dxc5 {[%clk 0:02:29]}  Qc7 {[%clk 0:01:45]} 18. Qd6 {[%clk 0:02:25]}  Qxd6 {[%clk 0:01:40]} 19. cxd6 {[%clk 0:02:26]}  Nf5 {[%clk 0:01:38]} 20. Nd2 {[%clk 0:02:16]}  Nxd6 {[%clk 0:01:26]} 21. Red1 {[%clk 0:02:08]}  bxa4 {[%clk 0:01:08]} 22. Nf3 {[%clk 0:02:04]}  Nb5 {[%clk 0:00:39]} 23. Rxd7 {[%clk 0:02:03]}  axb3 {[%clk 0:00:39]} 24. Nd2 {[%clk 0:02:03]}  Rfc8 {[%clk 0:00:37]} 25. Nxb3 {[%clk 0:02:03]}  Rab8 {[%clk 0:00:15]} 26. Nc5 {[%clk 0:02:03]}  Nba7 {[%clk 0:00:12]} 27. Ba3 {[%clk 0:02:02]}  Nb5 {[%clk 0:00:08]} 28. h4 {[%clk 0:01:58]}  h6 {[%clk 0:00:08]} 29. Ne6 {[%clk 0:01:58]}  Ne5 {[%clk 0:00:06]} 30. Rxg7+ {[%clk 0:01:58]}  Kh8 {[%clk 0:00:07]} 31. Re7 {[%clk 0:01:52]}  Nxa3 {[%clk 0:00:06]} 32. Be4 {[%clk 0:01:48]}  f5 {[%clk 0:00:01]} 33. Bxf5 {[%clk 0:01:48]} 1-0


[Site "https://www.chess.com"]

[Event "Titled Tuesday Blitz June 6 Early 2023"]
[White "Poltorak, Sebastian"]
[Black "Ilamparthi A R"]
[WhiteFideId "1199498"]
[BlackFideId "45015775"]
[WhiteElo "2195"]
[BlackElo "2348"]
[Result "0-1"]
[Round "4"]
[TimeControl "180+2"]
[Date "2023.06.06"]
[WhiteClock "0:00:07"]
[BlackClock "0:00:41"]
[Board "45"]

1. d4 {[%clk 0:02:53]}  Nf6 {[%clk 0:02:59]} 2. c4 {[%clk 0:02:53]}  g6 {[%clk 0:02:59]} 3. Nc3 {[%clk 0:02:53]}  Bg7 {[%clk 0:03:00]} 4. e4 {[%clk 0:02:54]}  d6 {[%clk 0:03:00]} 5. Be2 {[%clk 0:02:54]}  O-O {[%clk 0:03:01]} 6. Be3 {[%clk 0:02:55]}  e5 {[%clk 0:02:54]} 7. d5 {[%clk 0:02:54]}  Na6 {[%clk 0:02:54]} 8. h4 {[%clk 0:02:47]}  Nc5 {[%clk 0:02:42]} 9. f3 {[%clk 0:02:42]}  Nh5 {[%clk 0:02:41]} 10. Qd2 {[%clk 0:02:24]}  Nf4 {[%clk 0:02:35]} 11. Bf1 {[%clk 0:01:18]}  a5 {[%clk 0:02:17]} 12. O-O-O {[%clk 0:01:11]}  f5 {[%clk 0:01:57]} 13. Nge2 {[%clk 0:00:50]}  fxe4 {[%clk 0:01:53]} 14. Nxe4 {[%clk 0:00:47]}  Nxe4 {[%clk 0:01:37]} 15. fxe4 {[%clk 0:00:48]}  Bg4 {[%clk 0:01:37]} 16. Re1 {[%clk 0:00:44]}  Qf6 {[%clk 0:01:32]} 17. g3 {[%clk 0:00:41]}  Nh5 {[%clk 0:01:32]} 18. Bg2 {[%clk 0:00:41]}  Qe7 {[%clk 0:01:08]} 19. Bg5 {[%clk 0:00:34]}  Qd7 {[%clk 0:01:06]} 20. Rhf1 {[%clk 0:00:19]}  Rxf1 {[%clk 0:01:06]} 21. Bxf1 {[%clk 0:00:15]}  Rf8 {[%clk 0:00:55]} 22. c5 {[%clk 0:00:11]}  dxc5 {[%clk 0:00:52]} 23. Nc3 {[%clk 0:00:11]}  Nxg3 {[%clk 0:00:49]} 24. Bc4 {[%clk 0:00:11]}  Kh8 {[%clk 0:00:48]} 25. Rg1 {[%clk 0:00:11]}  Nh5 {[%clk 0:00:47]} 26. Qg2 {[%clk 0:00:12]}  Bh3 {[%clk 0:00:42]} 27. Qh2 {[%clk 0:00:12]}  Nf4 {[%clk 0:00:42]} 28. Bb5 {[%clk 0:00:09]}  c6 {[%clk 0:00:40]} 29. dxc6 {[%clk 0:00:09]}  bxc6 {[%clk 0:00:41]} 30. Bd3 {[%clk 0:00:07]} 0-1


[Site "https://www.chess.com"]